bitfinex/quotes_BTCUSD_20250826
["timestamp","ask_amount","ask_price","bid_price","bid_amount"]
[1756202790786,0.18104462,110470.0,110460.0,0.44700224]
[1756202791327,0.18104462,110470.0,110460.0,0.44915224]
[1756202791527,0.18104462,110470.0,110460.0,0.45015224]
[1756202792169,0.18104462,110470.0,110460.0,0.29747224]
[1756202792382,0.18104462,110470.0,110460.0,0.45015224]
[1756202792587,0.18104462,110470.0,110460.0,0.45115224]
[1756202792947,0.18104462,110470.0,110460.0,0.29847224]
[1756202793128,0.18104462,110470.0,110460.0,0.26790349]
[1756202793400,0.16475462,110470.0,110460.0,0.4489645]
[1756202793556,0.16475462,110470.0,110460.0,0.4511145]
[1756202797465,0.78424975,110480.0,110460.0,0.4511145]
[1756202797664,0.18104462,110470.0,110460.0,0.4511145]
[1756202798001,0.18104462,110470.0,110460.0,0.4457545]
[1756202798245,5.90578615,110470.0,110460.0,0.002]
[1756202798458,5.90578615,110470.0,110460.0,0.001]
[1756202798806,5.93170709,110470.0,110460.0,0.001]
[1756202799011,5.94869542,110470.0,110460.0,0.001]
[1756202799285,0.18107741,110450.0,110440.0,0.15256]
[1756202799485,5.32179692,110450.0,110440.0,0.15256]
[1756202800436,5.32179692,110450.0,110440.0,0.15303694]
[1756202801068,5.32379692,110450.0,110440.0,0.15303694]
[1756202801723,5.66379692,110450.0,110440.0,0.00047694]
[1756202801979,6.35848045,110450.0,110440.0,0.00047694]
[1756202802201,5.93508894,110450.0,110440.0,0.00047694]
[1756202802642,5.93608894,110450.0,110440.0,0.00047694]
[1756202803376,5.18026743,110450.0,110440.0,0.00047694]
[1756202803579,5.93608894,110450.0,110440.0,0.00047694]
[1756202807715,5.33286743,110450.0,110440.0,0.00570694]
[1756202807919,5.90885894,110450.0,110440.0,0.00570694]
[1756202808327,5.90905894,110450.0,110440.0,0.00570694]
[1756202809205,5.90905894,110450.0,110440.0,0.00371694]
[1756202810153,5.90905894,110450.0,110440.0,0.00047694]
[1756202810587,5.93893097,110450.0,110440.0,0.00047694]
[1756202810828,5.78613097,110450.0,110440.0,0.00047694]
[1756202811032,5.93893097,110450.0,110440.0,0.00047694]
[1756202811275,5.9583964,110450.0,110440.0,0.00047694]
[1756202811503,5.92852437,110450.0,110440.0,0.00047694]
[1756202812377,5.94597339,110450.0,110440.0,0.00047694]
[1756202812578,6.5491949,110450.0,110440.0,0.00047694]
[1756202812790,6.5764259,110450.0,110440.0,0.00047694]
[1756202813191,5.97320439,110450.0,110440.0,0.00047694]
[1756202813576,5.97220439,110450.0,110440.0,0.00047694]
[1756202813949,5.97320439,110450.0,110440.0,0.00047694]
[1756202814162,5.81840439,110450.0,110440.0,0.00047694]
[1756202814410,5.97120439,110450.0,110440.0,0.00047694]
[1756202814610,5.97220439,110450.0,110440.0,0.00047694]
[1756202816832,6.62851016,110450.0,110440.0,0.00047694]
[1756202817146,6.62851016,110450.0,110410.0,0.07653699]
[1756202817147,0.78434811,110420.0,110410.0,0.07653699]
[1756202817346,0.78434811,110420.0,110410.0,0.07668016]
[1756202817497,0.78434811,110420.0,110410.0,0.07867016]
[1756202817896,0.93706811,110420.0,110410.0,0.07668016]
[1756202818118,0.93706811,110420.0,110410.0,0.00338317]
[1756202818480,0.93706811,110420.0,110410.0,0.00637317]
[1756202819070,0.78434811,110420.0,110410.0,0.00637317]
[1756202819273,0.93710811,110420.0,110410.0,0.00637317]
[1756202819761,1.02857013,110420.0,110410.0,0.00114317]
[1756202819963,1.04804281,110420.0,110410.0,0.00338317]
[1756202820259,5.61277781,110420.0,110410.0,0.00338317]
[1756202820464,5.61273781,110420.0,110410.0,0.00338317]
[1756202820673,5.62143304,110420.0,110410.0,0.00338317]
[1756202821206,5.96143304,110420.0,110410.0,0.00014317]
[1756202821405,5.80871304,110420.0,110410.0,0.00014317]
[1756202821634,5.96143304,110420.0,110410.0,0.00014317]
[1756202824050,5.80871304,110420.0,110410.0,0.00014317]
[1756202824231,5.96147304,110420.0,110410.0,0.00014317]
[1756202826963,5.96151304,110420.0,110410.0,0.00014317]
[1756202827164,5.98482149,110420.0,110410.0,0.00338317]
[1756202827380,5.98482149,110420.0,110410.0,0.00014317]
[1756202827795,5.98482149,110420.0,110410.0,0.00537317]
[1756202828260,5.98482149,110420.0,110410.0,0.00014317]
[1756202828509,5.38159998,110420.0,110410.0,0.00014317]
[1756202828713,5.22875998,110420.0,110410.0,0.00537317]
[1756202828883,5.13729796,110420.0,110410.0,0.00537317]
[1756202829043,4.58420768,110420.0,110410.0,0.18651618]
[1756202829245,0.20059928,110420.0,110410.0,0.18651618]
[1756202829880,0.01947268,110420.0,110410.0,0.18651618]
[1756202830285,0.20059928,110420.0,110410.0,0.18651618]
[1756202830859,0.01947268,110420.0,110410.0,0.18651618]
[1756202831063,0.20059928,110420.0,110410.0,0.18651618]
[1756202831451,0.01947268,110420.0,110410.0,0.18651618]
[1756202831823,0.20059928,110420.0,110410.0,0.18651618]
[1756202833247,0.01947268,110420.0,110410.0,0.18651618]
[1756202833506,0.01947268,110420.0,110410.0,0.85937769]
[1756202833705,0.18977894,110430.0,110420.0,0.1811266]
[1756202834000,0.18977894,110430.0,110420.0,0.3392866]
[1756202834001,0.20066584,110430.0,110420.0,0.3392866]
[1756202834958,0.20066584,110430.0,110420.0,0.3422866]
[1756202835255,0.20940111,110430.0,110420.0,0.3422866]
[1756202835660,0.20066584,110430.0,110420.0,0.3422866]
[1756202836198,0.20931412,110430.0,110420.0,0.3422866]
[1756202836379,0.20066584,110430.0,110420.0,0.3422866]
[1756202838557,0.20066584,110430.0,110420.0,0.16116]
[1756202838765,0.20916372,110430.0,110420.0,0.0061]
[1756202838969,0.36208372,110430.0,110420.0,0.0061]
[1756202839374,0.36208372,110430.0,110420.0,0.0082]
[1756202840383,0.36208372,110430.0,110420.0,0.1893266]
[1756202840887,0.20916372,110430.0,110420.0,0.0082]
[1756202843513,0.02771517,110430.0,110420.0,0.0082]
[1756202843716,0.20884023,110430.0,110420.0,0.0082]
[1756202844318,0.18962294,110430.0,110420.0,0.0082]
[1756202845878,0.1811102,110430.0,110420.0,0.1893266]
[1756202846789,0.1811102,110430.0,110420.0,0.16132]
[1756202849883,0.1811102,110430.0,110420.0,0.3424466]
[1756202851672,0.1811102,110430.0,110420.0,0.16132]
[1756202852271,0.1811102,110430.0,110420.0,0.3424466]
[1756202857823,0.1811102,110430.0,110420.0,0.1893266]
[1756202858029,0.1811102,110430.0,110420.0,0.3422066]
[1756202859968,0.1707102,110430.0,110420.0,0.3422066]
[1756202860416,0.34231944,110440.0,110430.0,0.1811102]
[1756202860621,0.18951944,110440.0,110430.0,0.1863102]
[1756202862200,0.00842564,110440.0,110430.0,0.1863102]
[1756202862341,0.00842564,110440.0,110430.0,0.1873102]
[1756202862342,0.18951944,110440.0,110430.0,0.1873102]
[1756202862570,0.1810938,110440.0,110430.0,0.1873102]
[1756202862756,0.36114641,110450.0,110440.0,0.1810938]
[1756202862965,0.34228814,110450.0,110440.0,0.00512]
[1756202864035,0.34328814,110450.0,110440.0,0.00512]
[1756202864242,0.34428814,110450.0,110440.0,0.00512]
[1756202865825,0.94750965,110450.0,110440.0,0.00512]
[1756202867126,0.94750965,110450.0,110440.0,0.00309]
[1756202867722,0.94750965,110450.0,110440.0,0.00512]
[1756202869149,0.94750965,110450.0,110440.0,0.00309]
[1756202870973,0.1811102,110430.0,110420.0,0.15268]
[1756202871191,0.1811266,110420.0,110410.0,0.15595317]
[1756202871420,0.1811266,110420.0,110410.0,0.33912618]
[1756202872095,0.1811266,110420.0,110410.0,0.18640618]
[1756202872298,0.1811266,110420.0,110410.0,0.33924618]
[1756202872677,0.1811266,110420.0,110410.0,0.34224618]
[1756202872848,0.1811266,110420.0,110410.0,0.18940618]
[1756202873056,0.1811266,110420.0,110410.0,0.34228618]
[1756202873249,0.3338702,110430.0,110410.0,0.34228618]
[1756202873461,0.3338702,110430.0,110420.0,0.1852166]
[1756202873662,0.1811102,110430.0,110420.0,0.1872466]
[1756202874251,0.1811102,110430.0,110420.0,0.1862466]
[1756202875359,0.1811102,110430.0,110420.0,0.1872466]
[1756202875744,0.1811102,110430.0,110420.0,0.00612]
[1756202876556,0.1811102,110430.0,110420.0,0.00812]
[1756202876916,0.1811102,110430.0,110420.0,0.1612]
[1756202877553,0.1811102,110430.0,110420.0,0.3423266]
[1756202879673,0.2083402,110430.0,110420.0,0.3423266]
[1756202880920,0.02723,110430.0,110420.0,0.3423266]
[1756202881125,0.1810938,110440.0,110430.0,0.1811102]
[1756202881329,0.2083218,110440.0,110430.0,0.1831402]
[1756202881532,0.2083218,110440.0,110430.0,0.1862302]
[1756202881738,0.027228,110440.0,110430.0,0.78945171]
[1756202881949,0.00837073,110450.0,110440.0,0.1810938]
[1756202882133,0.21667314,110450.0,110440.0,0.3342538]
[1756202882368,0.20830241,110450.0,110440.0,0.3393738]
[1756202882553,0.21700474,110450.0,110440.0,0.3393738]
[1756202883114,0.20830241,110450.0,110440.0,0.3393738]
[1756202883314,0.20930241,110450.0,110440.0,0.3393738]
[1756202884241,0.21030241,110450.0,110440.0,0.3393738]
[1756202884853,0.20930241,110450.0,110440.0,0.3393738]
[1756202885056,0.20830241,110450.0,110440.0,0.3393338]
[1756202885386,0.20830241,110450.0,110440.0,0.3403338]
[1756202886239,0.027225,110450.0,110440.0,0.3403338]
[1756202886370,0.20830241,110450.0,110440.0,0.3403338]
[1756202890189,0.027225,110450.0,110440.0,0.94355531]
[1756202890391,0.18974195,110460.0,110450.0,0.18107741]
[1756202890641,0.18974195,110460.0,110450.0,0.18619741]
[1756202890868,0.00868074,110460.0,110450.0,0.18619741]
[1756202891026,0.19009685,110470.0,110460.0,0.18106101]
[1756202891231,0.18110622,110480.0,110460.0,0.33921101]
[1756202891431,0.18104462,110470.0,110460.0,0.33611101]
[1756202891661,0.20826562,110470.0,110460.0,0.33611101]
[1756202891909,0.027221,110470.0,110460.0,0.33611101]
[1756202892091,0.20826562,110470.0,110460.0,0.33921101]
[1756202892434,0.20826562,110470.0,110460.0,0.33821101]
[1756202892850,1.03735325,110480.0,110460.0,0.33821101]
[1756202893069,0.18104462,110470.0,110460.0,0.33821101]
[1756202894772,0.18104462,110470.0,110460.0,0.33721101]
[1756202895779,0.18104462,110470.0,110460.0,0.33821101]
[1756202896002,0.18104462,110470.0,110460.0,0.00615]
[1756202896166,0.18104462,110470.0,110460.0,0.15911]
[1756202896622,0.18104462,110470.0,110460.0,0.34017101]
[1756202899231,1.06457425,110480.0,110460.0,0.34017101]
[1756202899449,0.82011223,110480.0,110470.0,0.18414462]
[1756202899653,0.79289123,110480.0,110470.0,0.00515]
[1756202900062,0.79289123,110480.0,110470.0,0.15598]
[1756202900693,0.79389123,110480.0,110470.0,0.15598]
[1756202901905,0.79489123,110480.0,110470.0,0.15598]
[1756202902349,0.79489123,110480.0,110470.0,0.15803]
[1756202902937,0.79489123,110480.0,110470.0,0.15598]
[1756202903297,0.79489123,110480.0,110470.0,0.15288]
[1756202903510,0.18104462,110470.0,110460.0,0.18106101]
[1756202903692,0.18104462,110470.0,110460.0,0.33587101]
[1756202904046,0.18104462,110470.0,110460.0,0.33897101]
[1756202904278,0.78426613,110470.0,110460.0,0.15586]
[1756202904453,0.78426613,110470.0,110460.0,0.33692101]
[1756202904803,0.78426613,110470.0,110460.0,0.33897101]
[1756202905052,0.18104462,110470.0,110460.0,0.33897101]
[1756202906214,0.18104462,110470.0,110460.0,0.33997101]
[1756202906866,0.18104462,110470.0,110460.0,0.00615]
[1756202907033,0.18104462,110470.0,110460.0,0.33784101]
[1756202907638,0.18104462,110470.0,110460.0,0.33989101]
[1756202910314,0.61178501,110480.0,110470.0,0.18104462]
[1756202910542,4.77e-05,110480.0,110470.0,0.18619462]
[1756202910999,4.77e-05,110480.0,110470.0,0.78941613]
[1756202911412,0.18101191,110490.0,110480.0,0.18102824]
[1756202911640,0.18101191,110490.0,110480.0,0.33463824]
[1756202911867,0.18101191,110490.0,110480.0,0.33773824]
[1756202912242,0.36434398,110500.0,110480.0,0.33673824]
[1756202912463,1.30761317,110500.0,110490.0,0.0031]
[1756202912841,1.30921317,110500.0,110490.0,0.0021]
[1756202913583,0.18101185,110490.0,110480.0,0.33158824]
[1756202913783,0.18101185,110490.0,110480.0,0.33363824]
[1756202914924,0.18101185,110490.0,110480.0,0.33673824]
[1756202915446,0.18201185,110490.0,110480.0,0.33673824]
[1756202916009,0.19052235,110490.0,110480.0,0.33673824]
[1756202921511,0.18952235,110490.0,110480.0,0.33673824]
[1756202921917,0.18952235,110490.0,110480.0,0.33773824]
[1756202922937,1.30757317,110500.0,110490.0,0.18101185]
[1756202922938,0.18104413,110500.0,110490.0,0.18101185]
[1756202923101,0.18104413,110500.0,110490.0,0.18638185]
[1756202924546,0.19119291,110500.0,110490.0,0.18638185]
[1756202925154,0.19219291,110500.0,110490.0,0.18638185]
[1756202926037,0.18387291,110500.0,110490.0,0.18638185]
[1756202929519,0.78709442,110500.0,110490.0,0.18638185]
[1756202932123,0.18387291,110500.0,110490.0,0.18638185]
[1756202934381,0.18101185,110490.0,110480.0,0.027213]
[1756202934547,0.18261185,110490.0,110480.0,0.15248]
[1756202934748,0.94702419,110500.0,110480.0,0.33887824]
[1756202935186,0.79454419,110500.0,110490.0,0.00324]
[1756202935435,0.79454419,110500.0,110490.0,0.00537]
[1756202935600,0.79614419,110500.0,110490.0,0.00537]
[1756202936000,0.79514419,110500.0,110490.0,0.00537]
[1756202937011,0.79514419,110500.0,110490.0,0.18638185]
[1756202937213,0.19032268,110500.0,110490.0,0.18638185]
[1756202938513,0.01647175,110500.0,110490.0,0.18638185]
[1756202938746,0.19748214,110500.0,110490.0,0.18638185]
[1756202938946,0.19908214,110500.0,110490.0,0.18638185]
[1756202940168,0.19748214,110500.0,110490.0,0.18638185]
[1756202940818,0.19908214,110500.0,110490.0,0.00537]
[1756202941320,0.80230365,110500.0,110490.0,0.00537]
[1756202941528,0.80230365,110500.0,110490.0,0.18638185]
[1756202942381,0.79165388,110500.0,110490.0,0.18638185]
[1756202942796,0.79325388,110500.0,110490.0,0.18638185]
[1756202943005,0.18101185,110490.0,110480.0,0.33674824]
[1756202943383,0.18101185,110490.0,110480.0,0.33887824]
[1756202944233,0.78583336,110490.0,110480.0,0.33350824]
[1756202944546,0.78583336,110490.0,110480.0,0.33887824]
[1756202944753,0.18261185,110490.0,110480.0,0.33887824]
[1756202945078,0.18101185,110490.0,110480.0,0.33887824]
[1756202945514,0.18101185,110490.0,110480.0,0.33987824]
[1756202948075,0.79970365,110500.0,110480.0,0.33987824]
[1756202948472,0.79970365,110500.0,110490.0,0.18425185]
[1756202948672,0.18741745,110500.0,110490.0,0.18638185]
[1756202949482,0.18841745,110500.0,110490.0,0.18638185]
[1756202950059,0.19001745,110500.0,110490.0,0.18638185]
[1756202950484,0.18841745,110500.0,110490.0,0.18638185]
[1756202951165,0.18741745,110500.0,110490.0,0.18638185]
[1756202951578,0.18841745,110500.0,110490.0,0.18638185]
[1756202952004,0.00742198,110500.0,110490.0,0.18638185]
[1756202952212,0.18841745,110500.0,110490.0,0.18638185]
[1756202952843,0.00742198,110500.0,110490.0,0.18638185]
[1756202953288,0.001,110500.0,110490.0,0.18638185]
[1756202955117,0.53054929,110510.0,110500.0,0.18099547]
[1756202955422,1.13424768,110510.0,110500.0,0.33875547]
[1756202956043,1.14301852,110510.0,110500.0,0.33875547]
[1756202956250,1.14301852,110510.0,110500.0,0.15776]
[1756202956612,1.14401852,110510.0,110500.0,0.15776]
[1756202956975,1.14561852,110510.0,110500.0,0.15776]
[1756202960577,1.17282952,110510.0,110500.0,0.15776]
[1756202961156,0.03785872,110510.0,110500.0,0.33875547]
[1756202961493,0.21883781,110510.0,110500.0,0.33875547]
[1756202961825,0.19162681,110510.0,110500.0,0.33875547]
[1756202962210,0.19062681,110510.0,110500.0,0.33875547]
[1756202962807,0.19062681,110510.0,110500.0,0.33975547]
[1756202963819,0.19062681,110510.0,110500.0,0.18731547]
[1756202964227,0.19062681,110510.0,110500.0,0.33975547]
[1756202967945,0.19222681,110510.0,110500.0,0.33971547]
[1756202968325,0.19062681,110510.0,110500.0,0.33971547]
[1756202972497,0.19222681,110510.0,110500.0,0.18199547]
[1756202972698,0.79544832,110510.0,110500.0,0.001]
[1756202972837,0.79544832,110510.0,110500.0,0.1534]
[1756202975352,0.19222681,110510.0,110500.0,0.1534]
[1756202975562,0.79544832,110510.0,110500.0,0.1534]
[1756202976371,0.94784832,110510.0,110500.0,0.001]
[1756202976567,5.48634632,110510.0,110500.0,0.001]
[1756202976771,5.48534632,110510.0,110500.0,0.001]
[1756202977214,0.19062681,110510.0,110500.0,0.18731547]
[1756202977719,0.32997042,110520.0,110500.0,0.18731547]
[1756202977920,4.71847709,110510.0,110500.0,0.18412547]
[1756202978193,0.18097909,110510.0,110500.0,0.18412547]
[1756202978632,0.1953231,110520.0,110500.0,0.18731547]
[1756202978812,1.13854461,110520.0,110510.0,0.1524]
[1756202978971,0.94322151,110520.0,110510.0,0.15772]
[1756202979158,1.12419914,110520.0,110510.0,0.15772]
[1756202979365,1.12679914,110520.0,110510.0,0.15559]
[1756202979569,1.1353452,110520.0,110510.0,0.15559]
[1756202980013,1.14339333,110520.0,110510.0,0.15559]
[1756202980373,1.14439333,110520.0,110510.0,0.15559]
[1756202980705,1.14439333,110520.0,110510.0,0.15772]
[1756202980913,1.14279333,110520.0,110510.0,0.15772]
[1756202981826,0.53957182,110520.0,110510.0,0.15772]
[1756202981949,0.54117182,110520.0,110510.0,0.15772]
[1756202982153,1.14279333,110520.0,110510.0,0.15772]
[1756202982354,1.14439333,110520.0,110510.0,0.15772]
[1756202982913,0.53957182,110520.0,110510.0,0.15772]
[1756202983140,1.14279333,110520.0,110510.0,0.15772]
[1756202983826,0.53957182,110520.0,110510.0,0.15772]
[1756202984035,1.14279333,110520.0,110510.0,0.15772]
[1756202984257,0.54117182,110520.0,110510.0,0.15772]
[1756202984400,1.14439333,110520.0,110510.0,0.15772]
[1756202985816,0.54117182,110520.0,110510.0,0.15772]
[1756202986895,1.14439333,110520.0,110510.0,0.15772]
[1756202987498,1.14279333,110520.0,110510.0,0.15772]
[1756202987832,1.14279333,110520.0,110510.0,0.33869909]
[1756202988941,1.14439333,110520.0,110510.0,0.15772]
[1756202990389,0.80279333,110520.0,110510.0,0.33869909]
[1756202990785,0.19957182,110520.0,110510.0,0.33869909]
[1756202990990,0.80279333,110520.0,110510.0,0.33869909]
[1756202991679,0.80279333,110520.0,110510.0,0.15772]
[1756202992031,0.79615333,110520.0,110510.0,0.15772]
[1756202992429,0.79615333,110520.0,110510.0,0.155423]
[1756202994654,0.79775333,110520.0,110510.0,0.155423]
[1756202995472,1.0966915,110520.0,110510.0,0.153293]
[1756202996148,1.0966915,110520.0,110510.0,0.150103]
[1756202996931,0.19453182,110520.0,110510.0,0.150103]
[1756202997155,1.0966915,110520.0,110510.0,0.150103]
[1756202997313,1.0966915,110520.0,110510.0,0.153133]
[1756202997516,1.0966915,110520.0,110510.0,0.150103]
[1756202997722,0.18097909,110510.0,110500.0,0.18402547]
[1756202997933,0.18099547,110500.0,110490.0,0.32693884]
[1756202998131,0.63367531,110500.0,110490.0,0.48129884]
[1756202998333,0.18259547,110500.0,110490.0,0.40800185]
[1756202998540,0.63207531,110500.0,110490.0,0.40800185]
[1756202999167,0.45107984,110500.0,110490.0,0.40800185]
[1756202999369,0.18097909,110510.0,110500.0,0.18099547]
[1756202999554,0.18097909,110510.0,110500.0,0.18606547]
[1756202999555,0.45107984,110510.0,110500.0,0.18606547]
[1756202999726,0.63205893,110510.0,110500.0,0.18606547]
[1756202999912,0.18097909,110510.0,110500.0,0.63714531]
[1756203000122,0.63205893,110510.0,110500.0,0.18606547]
[1756203000834,0.18097909,110510.0,110500.0,0.18606547]
[1756203001028,0.63205893,110510.0,110500.0,0.18706547]
[1756203002415,0.18097909,110510.0,110500.0,0.18706547]
[1756203002621,0.45107984,110510.0,110500.0,0.18706547]
[1756203003025,0.21671978,110520.0,110510.0,0.18097909]
[1756203003242,0.00854606,110520.0,110510.0,0.78944893]
[1756203003595,0.19658915,110530.0,110510.0,0.78944893]
[1756203003804,0.73913101,110530.0,110520.0,0.00303]
[1756203004075,0.74073101,110530.0,110520.0,0.00303]
[1756203004273,0.19818915,110530.0,110520.0,0.18603272]
[1756203004471,0.64926899,110530.0,110520.0,0.18603272]
[1756203004701,0.64766899,110530.0,110520.0,0.18603272]
[1756203005288,0.65126899,110530.0,110520.0,0.18603272]
[1756203005475,0.20018915,110530.0,110520.0,0.18603272]
[1756203005677,0.19818915,110530.0,110520.0,0.18603272]
[1756203005950,0.19818915,110530.0,110520.0,0.00507]
[1756203006150,0.79947025,110530.0,110520.0,0.00507]
[1756203006557,0.79947025,110530.0,110520.0,0.18299272]
[1756203006697,0.79947025,110530.0,110520.0,0.18503272]
[1756203007315,0.80047025,110530.0,110520.0,0.18503272]
[1756203008601,0.80047025,110530.0,110520.0,0.18096272]
[1756203008830,0.80047025,110530.0,110520.0,0.18603272]
[1756203009619,0.80047025,110530.0,110520.0,0.00303]
[1756203009822,0.18096272,110520.0,110510.0,0.20818709]
[1756203010063,0.01653192,110530.0,110520.0,0.18096272]
[1756203010236,0.01653192,110530.0,110520.0,0.18300272]
[1756203010548,0.69747826,110530.0,110520.0,0.18603272]
[1756203010743,4.55402992,110530.0,110520.0,0.18603272]
[1756203010947,0.19747826,110530.0,110520.0,0.18603272]
[1756203011287,0.19747826,110530.0,110520.0,0.81451982]
[1756203011813,0.01653192,110530.0,110520.0,0.81451982]
[1756203012267,0.01653192,110530.0,110520.0,0.21323872]
[1756203013171,5.05402992,110530.0,110520.0,0.21323872]
[1756203013395,0.01653192,110530.0,110520.0,0.21323872]
[1756203015523,0.80073936,110530.0,110520.0,0.20816872]
[1756203015746,0.80073936,110530.0,110520.0,0.36550872]
[1756203015747,0.79875936,110530.0,110520.0,0.36550872]
[1756203015964,0.19747826,110530.0,110520.0,0.36550872]
[1756203016115,0.01653192,110530.0,110520.0,0.36550872]
[1756203017741,0.01653192,110530.0,110520.0,0.96678982]
[1756203018213,0.01653192,110530.0,110520.0,0.36550872]
[1756203019606,0.001,110530.0,110520.0,0.36550872]
[1756203019805,0.001,110530.0,110520.0,0.96678982]
[1756203020007,0.001,110530.0,110520.0,0.36550872]
[1756203020206,0.001,110530.0,110520.0,0.96678982]
[1756203020431,0.5004,110540.0,110530.0,0.18094634]
[1756203020602,0.5004,110540.0,110530.0,0.18604634]
[1756203020603,0.00054298,110540.0,110530.0,0.18604634]
[1756203021025,0.50054298,110540.0,110530.0,0.18604634]
[1756203021226,5.03804098,110540.0,110530.0,0.81453144]
[1756203021427,0.00054298,110540.0,110530.0,0.81453144]
[1756203022313,0.01587216,110540.0,110530.0,0.21425034]
[1756203022667,0.50054298,110540.0,110530.0,0.81553144]
[1756203022890,5.03804098,110540.0,110530.0,0.81553144]
[1756203023180,0.00054298,110540.0,110530.0,0.81553144]
[1756203023377,0.50054298,110540.0,110530.0,0.81553144]
[1756203023593,5.03804098,110540.0,110530.0,0.81553144]
[1756203023806,0.0166336,110540.0,110530.0,0.81653144]
[1756203024010,0.0166336,110540.0,110530.0,0.21525034]
[1756203024011,0.5166336,110540.0,110530.0,0.21525034]
[1756203024240,5.0541316,110540.0,110530.0,0.81653144]
[1756203024446,0.00054298,110540.0,110530.0,0.81653144]
[1756203025211,0.00054298,110540.0,110530.0,0.98129045]
[1756203026439,0.00054298,110540.0,110530.0,0.98029045]
[1756203026908,0.00054298,110540.0,110530.0,1.13253045]
[1756203027107,0.00054298,110540.0,110530.0,1.13353045]
[1756203027431,0.00054298,110540.0,110530.0,1.13653045]
[1756203030768,0.00054298,110540.0,110530.0,1.13453045]
[1756203030963,0.00054298,110540.0,110530.0,1.13653045]
[1756203037129,0.00054298,110540.0,110530.0,1.06323346]
[1756203043284,0.00054298,110540.0,110530.0,1.36323634]
[1756203043883,0.00054298,110540.0,110530.0,0.91255435]
[1756203044271,0.00252298,110540.0,110530.0,0.91060435]
[1756203044493,0.00252298,110540.0,110530.0,0.91269435]
[1756203045238,0.00054298,110540.0,110530.0,0.91269435]
[1756203045417,0.00054298,110540.0,110530.0,1.06297975]
[1756203049440,0.00054298,110540.0,110530.0,1.46297975]
[1756203052163,0.00054298,110540.0,110530.0,1.82042877]
[1756203054107,0.00054298,110540.0,110530.0,1.88998877]
[1756203055613,0.00054298,110540.0,110530.0,1.73778877]
[1756203055835,0.00054298,110540.0,110530.0,1.88994877]
[1756203056235,0.00054298,110540.0,110530.0,1.48994877]
[1756203056860,0.00054298,110540.0,110530.0,1.88994877]
[1756203057260,0.00054298,110540.0,110530.0,1.48994877]
[1756203058055,0.0002,110550.0,110540.0,0.18092998]
[1756203058253,0.0002,110550.0,110540.0,1.02862939]
[1756203058501,0.0002,110550.0,110540.0,1.03071939]
[1756203059283,0.0002,110550.0,110540.0,1.03171939]
[1756203059480,0.0002,110550.0,110540.0,1.05891439]
[1756203059684,0.0002,110550.0,110540.0,1.06091439]
[1756203060468,0.00218,110550.0,110540.0,0.302587]
[1756203060698,0.00418,110550.0,110540.0,0.302587]
[1756203060895,0.00418,110550.0,110540.0,0.454747]
[1756203061733,0.00218,110550.0,110540.0,0.454747]
[1756203061980,0.00218,110550.0,110540.0,1.06091439]
[1756203062578,0.00218,110550.0,110540.0,1.05567439]
[1756203063215,0.78183404,110570.0,110550.0,0.18091361]
[1756203063423,0.79087808,110570.0,110560.0,0.15216]
[1756203063632,4.72744869,110570.0,110560.0,0.15216]
[1756203064630,4.72844869,110570.0,110560.0,0.15216]
[1756203065499,4.72944869,110570.0,110560.0,0.15216]
[1756203065862,4.72844869,110570.0,110560.0,0.15216]
[1756203066064,4.72944869,110570.0,110560.0,0.15216]
[1756203066932,5.33037608,110570.0,110560.0,0.15216]
[1756203067650,5.33037608,110570.0,110550.0,0.25047361]
[1756203067843,4.71839525,110560.0,110550.0,0.25047361]
[1756203068066,0.18089725,110560.0,110550.0,0.40263361]
[1756203069934,0.18089725,110560.0,110550.0,0.40578361]
[1756203070343,0.18089725,110560.0,110550.0,0.40678361]
[1756203070765,0.18089725,110560.0,110550.0,0.85745995]
[1756203072595,0.18089725,110560.0,110550.0,0.40678361]
[1756203073357,0.18089725,110560.0,110550.0,0.33722361]
[1756203074382,0.64062703,110570.0,110550.0,0.33722361]
[1756203074636,4.71839525,110560.0,110550.0,0.33722361]
[1756203074802,0.18995069,110570.0,110550.0,0.79000995]
[1756203075007,5.037498,110560.0,110550.0,0.79000995]
[1756203075206,4.537498,110560.0,110550.0,0.79000995]
[1756203075408,4.71839525,110560.0,110550.0,0.79000995]
[1756203075619,0.18089725,110560.0,110550.0,0.79000995]
[1756203076901,0.18089725,110560.0,110550.0,0.78900995]
[1756203077905,0.18089725,110560.0,110550.0,0.79000995]
[1756203080169,0.18089725,110560.0,110550.0,0.33933361]
[1756203081934,0.64062703,110570.0,110550.0,0.33933361]
[1756203082141,0.64062703,110570.0,110550.0,0.78685995]
[1756203082310,0.64062703,110570.0,110560.0,0.00305]
[1756203083444,0.64162703,110570.0,110560.0,0.00305]
[1756203083789,0.19095069,110570.0,110560.0,0.00305]
[1756203083997,0.64162703,110570.0,110560.0,0.00305]
[1756203084401,0.64262703,110570.0,110560.0,0.00305]
[1756203086107,0.18089725,110560.0,110550.0,0.33307361]
[1756203086312,0.18089725,110560.0,110550.0,0.78679995]
[1756203086515,0.18089725,110560.0,110550.0,0.78890995]
[1756203087160,0.64162703,110570.0,110550.0,0.78890995]
[1756203087431,0.64162703,110570.0,110550.0,0.78585995]
[1756203087560,0.18089725,110560.0,110550.0,0.78585995]
[1756203087769,0.18089725,110560.0,110550.0,0.78685995]
[1756203087979,0.18089725,110560.0,110550.0,0.78990995]
[1756203088768,0.18089725,110560.0,110550.0,0.78890995]
[1756203090346,0.63157359,110560.0,110550.0,0.33823361]
[1756203090981,0.63157359,110560.0,110550.0,0.33923361]
[1756203099026,0.63157359,110560.0,110550.0,0.38082032]
[1756203105081,0.63157359,110560.0,110550.0,0.35013897]
[1756203105306,0.63157359,110560.0,110550.0,0.04567671]
[1756203105535,6.16188629,110560.0,110550.0,0.001]
[1756203105749,6.16188629,110560.0,110550.0,0.15312]
[1756203105970,5.73841195,110560.0,110550.0,0.15312]
[1756203106950,6.18908829,110560.0,110550.0,0.15312]
[1756203107168,5.73841195,110560.0,110550.0,0.001]
[1756203107587,6.52908829,110560.0,110550.0,0.001]
[1756203109756,6.68120829,110560.0,110550.0,0.001]
[1756203109983,6.23053195,110560.0,110550.0,0.001]
[1756203112150,6.68120829,110560.0,110550.0,0.001]
[1756203112613,6.69865731,110560.0,110550.0,0.001]
[1756203112842,6.72453345,110560.0,110550.0,0.001]
[1756203113079,6.74148529,110560.0,110550.0,0.001]
[1756203114006,8.09351431,110560.0,110550.0,1e-08]
[1756203114222,8.26787369,110560.0,110550.0,1e-08]
[1756203114439,0.18096272,110520.0,110510.0,0.09557699]
[1756203114625,0.18096272,110520.0,110510.0,0.07865997]
[1756203114626,1.0823154,110520.0,110510.0,0.07865997]
[1756203115065,1.0823154,110520.0,110510.0,0.07655997]
[1756203115297,1.1095254,110520.0,110510.0,0.07655997]
[1756203115510,0.8097082,110520.0,110510.0,0.07655997]
[1756203115859,0.83429893,110520.0,110510.0,0.07755997]
[1756203116265,1.43583441,110520.0,110510.0,0.07755997]